bitfinex/quotes_BTCUSD_20250508
["timestamp","ask_amount","ask_price","bid_price","bid_amount"]
[1746722471501,0.66151973,101220.0,101210.0,0.56167446]
[1746722471741,0.37867363,101220.0,101210.0,0.56167446]
[1746722472088,0.4041326,101220.0,101210.0,0.56167446]
[1746722472478,0.4041326,101220.0,101210.0,0.57155471]
[1746722472876,0.39718952,101220.0,101210.0,0.57155471]
[1746722473280,0.37867363,101220.0,101210.0,0.58143486]
[1746722474044,0.18108374,101220.0,101210.0,0.59131491]
[1746722474249,0.16468374,101220.0,101210.0,0.60119467]
[1746722474445,0.1501423,101220.0,101210.0,0.60119467]
[1746722474644,0.15261252,101220.0,101210.0,0.60119467]
[1746722474939,0.16249179,101220.0,101210.0,0.60119467]
[1746722475169,0.15261252,101220.0,101210.0,0.60119467]
[1746722475363,0.14749169,101220.0,101210.0,0.60119467]
[1746722476018,0.13761252,101220.0,101210.0,0.60119467]
[1746722476223,0.14749169,101220.0,101210.0,0.60119467]
[1746722476727,0.15737096,101220.0,101210.0,0.60119467]
[1746722476933,0.14749169,101220.0,101210.0,0.60119467]
[1746722478349,0.16725033,101220.0,101210.0,0.60119467]
[1746722478559,0.15737096,101220.0,101210.0,0.60119467]
[1746722480509,0.17588686,101220.0,101210.0,0.60119467]
[1746722481316,0.18576623,101220.0,101210.0,0.60119467]
[1746722481519,0.16725033,101220.0,101210.0,0.60119467]
[1746722482290,0.18576615,101220.0,101210.0,0.60119467]
[1746722483577,0.17588678,101220.0,101210.0,0.60119467]
[1746722483797,0.18576615,101220.0,101210.0,0.60119467]
[1746722484635,0.38335555,101220.0,101210.0,0.59131491]
[1746722484837,0.37612767,101220.0,101210.0,0.58143486]
[1746722485065,0.66159523,101220.0,101210.0,0.35418519]
[1746722485277,0.68483826,101220.0,101210.0,0.35418519]
[1746722485480,0.40199216,101220.0,101210.0,0.35418519]
[1746722488128,0.40200319,101220.0,101210.0,0.55179412]
[1746722488333,0.37070319,101220.0,101210.0,0.57155481]
[1746722488663,0.37070319,101220.0,101210.0,0.58143496]
[1746722488954,0.37070319,101220.0,101210.0,0.59773496]
[1746722489142,0.36286414,101220.0,101210.0,0.58785481]
[1746722489510,0.35592111,101220.0,101210.0,0.58785481]
[1746722489908,0.34604174,101220.0,101210.0,0.57797456]
[1746722490230,0.34604174,101220.0,101210.0,0.59693476]
[1746722490231,0.36113861,101220.0,101210.0,0.59693476]
[1746722491480,0.36113861,101220.0,101210.0,0.60681462]
[1746722493644,0.36113861,101220.0,101210.0,0.59693476]
[1746722494263,0.36808237,101220.0,101210.0,0.59693476]
[1746722494499,0.36808237,101220.0,101210.0,0.58705481]
[1746722494713,0.35820339,101220.0,101210.0,0.59693496]
[1746722494916,0.35820339,101220.0,101210.0,0.58143496]
[1746722495146,0.35820339,101220.0,101210.0,0.59131501]
[1746722495500,0.35820339,101220.0,101210.0,0.60119496]
[1746722495702,0.35125963,101220.0,101210.0,0.60119496]
[1746722495899,0.35125963,101220.0,101210.0,0.60119438]
[1746722496126,0.35125963,101220.0,101210.0,0.61729438]
[1746722496504,0.35125963,101220.0,101210.0,0.63229438]
[1746722496939,0.35125963,101220.0,101210.0,0.61729438]
[1746722497513,0.35820356,101220.0,101210.0,0.61729438]
[1746722499263,0.36808244,101220.0,101210.0,0.61729438]
[1746722499623,0.37796191,101220.0,101210.0,0.61729438]
[1746722500681,0.16061367,101220.0,101210.0,0.61729389]
[1746722500868,0.17049235,101220.0,101210.0,0.63239389]
[1746722501103,0.16354832,101220.0,101210.0,0.63239389]
[1746722501482,0.15491177,101220.0,101210.0,0.63239389]
[1746722502556,0.36485076,101220.0,101210.0,0.62251413]
[1746722502756,0.15491177,101220.0,101210.0,0.62251413]
[1746722502967,0.15491177,101220.0,101210.0,0.63239389]
[1746722503171,0.16479193,101220.0,101210.0,0.63239389]
[1746722503499,0.14750321,101220.0,101210.0,0.63239389]
[1746722503695,0.13515333,101220.0,101210.0,0.63239389]
[1746722503864,0.12527435,101220.0,101210.0,0.63239389]
[1746722504070,0.12527435,101220.0,101210.0,0.91367694]
[1746722504071,0.02460734,101220.0,101210.0,0.91367694]
[1746722504351,0.01472875,101220.0,101210.0,0.91367694]
[1746722504849,0.01472875,101220.0,101210.0,1.31367694]
[1746722505054,0.00547078,101220.0,101210.0,0.63239389]
[1746722505436,0.00547078,101220.0,101210.0,1.03239389]
[1746722507877,0.02522844,101220.0,101210.0,1.01263495]
[1746722508195,0.02522844,101220.0,101210.0,1.02251471]
[1746722508397,0.02522834,101220.0,101210.0,1.02251471]
[1746722508631,0.00547078,101220.0,101210.0,0.90379776]
[1746722508811,0.00547078,101220.0,101210.0,1.00446468]
[1746722508966,0.00547078,101220.0,101210.0,1.74446468]
[1746722510258,0.00547078,101220.0,101210.0,1.46318163]
[1746722510646,0.00547078,101220.0,101210.0,1.74446468]
[1746722515602,0.00547078,101220.0,101210.0,1.57251927]
[1746722518865,0.00547078,101220.0,101210.0,1.47185235]
[1746722523775,0.00547078,101220.0,101210.0,1.37508649]
[1746722524008,0.5151665,101230.0,101210.0,1.81514696]
[1746722524183,0.51525945,101230.0,101220.0,1.25472072]
[1746722524339,0.51525945,101230.0,101220.0,1.25274512]
[1746722524791,0.51525945,101230.0,101220.0,5.07374512]
[1746722524991,0.51525945,101230.0,101220.0,5.25597512]
[1746722525697,0.51725945,101230.0,101220.0,5.26445035]
[1746722525882,0.51925945,101230.0,101220.0,5.26445035]
[1746722526284,0.51525945,101230.0,101220.0,5.26445035]
[1746722526714,0.51525945,101230.0,101220.0,5.26845035]
[1746722526913,0.51235945,101230.0,101220.0,5.26845035]
[1746722527591,0.47388056,101230.0,101220.0,1.84745035]
[1746722528096,0.43603639,101230.0,101220.0,1.84745035]
[1746722528723,0.43603639,101230.0,101220.0,1.28542355]
[1746722528950,0.43603639,101230.0,101220.0,1.56643695]
[1746722529148,0.43603639,101230.0,101220.0,1.84745035]
[1746722532111,0.43603639,101230.0,101220.0,1.46577003]
[1746722533288,0.43603639,101230.0,101220.0,1.74678343]
[1746722533522,0.43504599,101230.0,101220.0,1.46577003]
[1746722533722,0.43504599,101230.0,101220.0,1.74678343]
[1746722533888,0.43504599,101230.0,101220.0,1.46577003]
[1746722534246,0.43504599,101230.0,101220.0,1.46010431]
[1746722534799,0.43504599,101230.0,101220.0,1.44390431]
[1746722535115,0.43504599,101230.0,101220.0,1.45890431]
[1746722537290,0.43504599,101230.0,101220.0,1.44390431]
[1746722538386,0.43504599,101230.0,101220.0,1.46030431]
[1746722539202,0.43504599,101230.0,101220.0,1.74131771]
[1746722539694,0.43504599,101230.0,101220.0,1.46030431]
[1746722543378,0.43504599,101230.0,101220.0,1.44390431]
[1746722543796,0.43504599,101230.0,101220.0,1.46010431]
[1746722546056,0.43504599,101230.0,101220.0,1.74111771]
[1746722546254,0.43504599,101230.0,101220.0,1.46010431]
[1746722546907,0.43504599,101230.0,101220.0,1.44390431]
[1746722547116,0.45024599,101230.0,101220.0,0.79369877]
[1746722547351,0.4957796,101230.0,101220.0,0.4233359]
[1746722547552,0.4957795,101230.0,101220.0,0.4233359]
[1746722547758,0.4859015,101230.0,101220.0,0.4233359]
[1746722548375,0.4601236,101230.0,101220.0,0.7043493]
[1746722548624,0.45024599,101230.0,101220.0,0.7023493]
[1746722548834,0.43504599,101230.0,101220.0,0.9996627]
[1746722548953,0.43504599,101230.0,101220.0,1.0160627]
[1746722549158,0.43504599,101230.0,101220.0,0.7330493]
[1746722549848,0.43504599,101230.0,101220.0,0.4356359]
[1746722550055,0.43504599,101230.0,101220.0,0.7003493]
[1746722550264,0.45074599,101230.0,101220.0,0.4193359]
[1746722550595,0.45074599,101230.0,101220.0,0.4213359]
[1746722550803,0.4606236,101230.0,101220.0,0.7023493]
[1746722551217,0.4606236,101230.0,101220.0,0.4233359]
[1746722551419,0.45074599,101230.0,101220.0,0.4233359]
[1746722551616,0.69364988,101230.0,101220.0,0.41345712]
[1746722551831,0.5868692,101230.0,101220.0,0.41345663]
[1746722552006,0.78443909,101230.0,101220.0,0.39369877]
[1746722552242,1.42923454,101230.0,101220.0,0.18623]
[1746722552517,1.53387995,101230.0,101220.0,0.18423]
[1746722552747,1.53387995,101230.0,101220.0,0.18223]
[1746722552947,1.63454687,101230.0,101220.0,0.18223]
[1746722553169,1.35353347,101230.0,101220.0,0.18223]
[1746722553368,0.01976167,101200.0,101190.0,0.31169874]
[1746722553682,0.10066692,101200.0,101190.0,0.51818102]
[1746722554088,0.11054756,101200.0,101190.0,0.51818102]
[1746722554307,0.12042829,101200.0,101190.0,0.23716762]
[1746722554515,0.12042839,101200.0,101190.0,0.23716762]
[1746722554852,0.12042829,101200.0,101190.0,0.51818102]
[1746722555089,0.13030922,101200.0,101190.0,1.01818102]
[1746722555243,0.15659035,101200.0,101190.0,1.01818102]
[1746722555409,0.13682829,101200.0,101190.0,1.01818102]
[1746722555603,0.14670922,101200.0,101190.0,1.01818102]
[1746722555804,0.16320922,101200.0,101190.0,1.01818102]
[1746722556066,0.12694756,101200.0,101190.0,1.01818102]
[1746722556234,0.11054746,101200.0,101190.0,1.01818102]
[1746722556901,0.12042829,101200.0,101190.0,1.01818102]
[1746722558587,0.11054746,101200.0,101190.0,1.01818102]
[1746722558934,0.12042819,101200.0,101190.0,1.01818102]
[1746722559133,0.12042819,101200.0,101190.0,0.73716762]
[1746722559387,0.14670912,101200.0,101190.0,1.01818102]
[1746722559596,0.13682819,101200.0,101190.0,1.01818102]
[1746722560634,0.10066692,101200.0,101190.0,0.73716762]
[1746722560842,0.11054765,101200.0,101190.0,1.03478102]
[1746722561447,0.11054765,101200.0,101190.0,1.01818102]
[1746722562513,0.10066692,101200.0,101190.0,1.01818102]
[1746722562758,0.10066692,101200.0,101190.0,1.31579442]
[1746722562976,0.11054746,101200.0,101190.0,1.31579442]
[1746722563180,0.12042819,101200.0,101190.0,1.01818102]
[1746722563614,0.12042819,101200.0,101190.0,0.73716762]
[1746722563839,0.14610902,101200.0,101190.0,1.01818102]
[1746722564137,0.13622819,101200.0,101190.0,1.01818102]
[1746722564631,0.12634746,101200.0,101190.0,1.01818102]
[1746722564850,0.11646692,101200.0,101190.0,1.01818102]
[1746722564998,0.10066692,101200.0,101190.0,1.01818102]
[1746722565628,0.11054756,101200.0,101190.0,1.01818102]
[1746722567402,0.12042829,101200.0,101190.0,1.01818102]
[1746722567780,0.11054756,101200.0,101190.0,1.01818102]
[1746722567906,0.12714756,101200.0,101190.0,1.01818102]
[1746722568123,0.13702829,101200.0,101190.0,1.01818102]
[1746722569336,0.14690932,101200.0,101190.0,1.01818102]
[1746722569667,0.36134968,101200.0,101190.0,0.69764038]
[1746722569859,0.38526052,101200.0,101190.0,0.71740449]
[1746722570790,0.38526052,101200.0,101190.0,0.72728668]
[1746722571165,0.36549886,101200.0,101190.0,0.70752258]
[1746722571341,0.36549886,101200.0,101190.0,0.71740458]
[1746722571541,0.36549886,101200.0,101190.0,0.5]
[1746722571542,0.34573622,101200.0,101190.0,0.5]
[1746722571765,0.34573622,101200.0,101190.0,0.70753037]
[1746722571970,0.34573622,101200.0,101190.0,0.71741267]
[1746722572326,1.09287097,101200.0,101190.0,0.5]
[1746722572525,1.03853622,101200.0,101190.0,0.5]
[1746722572780,1.04053622,101200.0,101190.0,0.5]
[1746722573140,1.04253622,101200.0,101190.0,0.5]
[1746722573588,0.22731646,101180.0,101170.0,1.31609347]
[1746722573935,0.22731646,101180.0,101170.0,1.32597713]
[1746722574147,0.36444154,101180.0,101170.0,0.05]
[1746722574354,0.36444154,101180.0,101170.0,0.24768706]
[1746722574561,0.34834154,101180.0,101170.0,0.34089775]
[1746722574752,0.34834154,101180.0,101170.0,0.84136853]
[1746722574971,0.34834154,101180.0,101170.0,1.03905539]
[1746722575806,0.34834154,101180.0,101170.0,1.04305539]
[1746722576671,0.34834154,101180.0,101170.0,1.05093944]
[1746722576969,0.34834154,101180.0,101170.0,1.04893944]
[1746722577820,0.34834154,101180.0,101170.0,1.0588234]
[1746722579026,0.34834154,101180.0,101170.0,1.06870726]
[1746722579209,0.35435856,101180.0,101170.0,0.74815784]
[1746722579396,0.35435856,101180.0,101170.0,0.75804219]
[1746722579601,0.35435856,101180.0,101170.0,0.55047078]
[1746722579802,0.35435856,101180.0,101170.0,0.74815784]
[1746722579998,0.35435856,101180.0,101170.0,0.75804209]
[1746722580204,0.35435856,101180.0,101170.0,0.76792614]
[1746722581229,0.37283616,101180.0,101170.0,0.76792614]
[1746722581431,0.35693616,101180.0,101170.0,0.7778099]
[1746722581625,0.37670251,101180.0,101170.0,0.7778099]
[1746722581808,0.16915162,101180.0,101170.0,0.7778099]
[1746722582133,0.13827182,101180.0,101170.0,1.10040696]
[1746722582327,0.15803749,101180.0,101170.0,1.10040696]
[1746722582531,0.15803739,101180.0,101170.0,1.10040696]
[1746722582728,0.16792047,101180.0,101170.0,1.10040696]
[1746722582900,0.20900365,101180.0,101170.0,1.06870696]
[1746722583100,0.40667253,101180.0,101170.0,0.77781]
[1746722583304,0.17935549,101180.0,101170.0,0.78769376]
[1746722583528,0.18182659,101180.0,101170.0,0.78769376]
[1746722583794,0.37317738,101180.0,101170.0,1.0588235]
[1746722584004,0.38058965,101180.0,101170.0,1.0588235]
[1746722584217,0.18292213,101180.0,101170.0,1.06870726]
[1746722584418,0.15803759,101180.0,101170.0,1.09409092]
[1746722584694,0.16792077,101180.0,101170.0,1.09409092]
[1746722584868,0.17780404,101180.0,101170.0,1.09409092]
[1746722585908,0.37547156,101180.0,101170.0,1.09409092]
[1746722586114,0.36558965,101180.0,101170.0,1.08420726]
[1746722586831,0.35570657,101180.0,101170.0,0.7933101]
[1746722587039,0.35570657,101180.0,101170.0,1.04893954]
[1746722587237,0.38208097,101180.0,101170.0,0.55047078]
[1746722587535,0.36638097,101180.0,101170.0,1.04893964]
[1746722587743,0.35048097,101180.0,101170.0,1.06413964]
[1746722589161,0.15281316,101180.0,101170.0,1.06413964]
[1746722589367,0.14815451,101180.0,101170.0,1.0740236]
[1746722589569,0.14944297,101180.0,101170.0,1.09910726]
[1746722589800,0.13955979,101180.0,101170.0,1.09910726]
[1746722590209,0.14944287,101180.0,101170.0,1.09910726]
[1746722590419,0.13955979,101180.0,101170.0,1.09910726]
[1746722590591,0.14944287,101180.0,101170.0,1.09910726]
[1746722590801,0.01848344,101190.0,101180.0,0.24291646]
[1746722591000,0.13335704,101190.0,101180.0,0.52392986]
[1746722591176,0.33784272,101190.0,101180.0,0.52392996]
[1746722591375,0.14019474,101190.0,101180.0,0.53381265]
[1746722591583,0.33784272,101190.0,101180.0,0.25279925]
[1746722591780,0.33784272,101190.0,101180.0,0.53381265]
[1746722591975,0.34708507,101190.0,101180.0,0.53381265]
[1746722592142,0.35108507,101190.0,101180.0,0.53381265]
[1746722592600,0.35108507,101190.0,101180.0,0.73303377]
[1746722592852,0.34120346,101190.0,101180.0,0.70755079]
[1746722593063,0.35740346,101190.0,101180.0,0.72731666]
[1746722594049,0.14355548,101190.0,101180.0,1.03431275]
[1746722594475,0.14355538,101190.0,101180.0,1.03431275]
[1746722594705,0.01324235,101190.0,101180.0,1.05091275]
[1746722594932,0.01324235,101190.0,101180.0,1.33192615]
[1746722595377,0.01324235,101190.0,101180.0,1.45091275]
[1746722595815,0.004,101190.0,101180.0,1.45091275]
[1746722596529,0.004,101190.0,101180.0,1.73192615]
[1746722596970,0.004,101190.0,101180.0,1.45091275]
[1746722598983,0.004,101190.0,101180.0,1.73192615]
[1746722599202,0.004,101190.0,101180.0,2.07192615]
[1746722599400,0.004,101190.0,101180.0,2.17259307]
[1746722600745,0.002,101190.0,101180.0,2.17259307]
[1746722600900,0.002,101190.0,101180.0,2.17459307]
[1746722601088,0.01975961,101210.0,101200.0,0.25867153]
[1746722601287,0.9246885,101220.0,101210.0,0.23366913]
[1746722601488,0.82776602,101220.0,101210.0,0.52456239]
[1746722601686,0.82310365,101220.0,101210.0,0.53444215]
[1746722601938,0.6928,101220.0,101210.0,0.54954215]
[1746722602301,0.70267868,101220.0,101210.0,0.54954215]
[1746722602484,0.70677162,101220.0,101210.0,0.54954215]
[1746722602684,0.69689294,101220.0,101210.0,0.54954215]
[1746722603135,0.00409294,101220.0,101210.0,1.04954215]
[1746722603869,0.00409294,101220.0,101210.0,1.44954215]
[1746722604752,0.00209294,101220.0,101210.0,2.17122247]
[1746722605386,9.294e-05,101220.0,101210.0,2.17122247]
[1746722606486,9.294e-05,101220.0,101210.0,1.89020907]
[1746722606676,9.294e-05,101220.0,101210.0,2.17918683]
[1746722613966,0.43495304,101230.0,101220.0,0.59842663]
[1746722614192,0.43495304,101230.0,101220.0,1.16045343]
[1746722614392,0.43495304,101230.0,101220.0,1.26112035]
[1746722614794,0.43495304,101230.0,101220.0,1.66112035]
[1746722615465,0.43495304,101230.0,101220.0,1.66312035]
[1746722616379,0.43495304,101230.0,101220.0,2.16512035]
[1746722621112,0.95141376,101270.0,101260.0,0.22713687]
[1746722621310,1.06662241,101270.0,101260.0,0.49827539]
[1746722621473,1.06676183,101270.0,101260.0,0.49827539]
[1746722622044,1.06676183,101270.0,101260.0,0.61726199]
[1746722622471,1.07076183,101270.0,101260.0,1.11726199]
[1746722623144,0.88614428,101270.0,101260.0,1.13701205]
[1746722623685,0.88614428,101270.0,101260.0,1.12713707]
[1746722623854,0.88614428,101270.0,101260.0,1.13601205]
[1746722624612,1.08363613,101270.0,101260.0,1.14588693]
[1746722625393,0.88614428,101270.0,101260.0,1.14588693]
[1746722625545,1.08363613,101270.0,101260.0,1.14588693]
[1746722626673,1.08363613,101270.0,101260.0,1.10738682]
[1746722627055,1.07310244,101270.0,101260.0,0.9]
[1746722628669,1.07310244,101270.0,101260.0,0.90617517]
[1746722629454,1.07310244,101270.0,101260.0,0.50617517]
[1746722629849,1.35411584,101270.0,101260.0,0.5]
[1746722631623,1.45478276,101270.0,101260.0,0.5]
[1746722631963,1.80170901,101270.0,101260.0,0.5]
[1746722632300,1.70104209,101270.0,101260.0,0.5]
[1746722632605,0.23788672,101260.0,101250.0,0.00617517]
[1746722632804,0.62649329,101260.0,101250.0,0.00617517]
[1746722633245,0.26232391,101250.0,101240.0,0.2173049]
[1746722633448,0.36299083,101250.0,101240.0,0.2173049]
[1746722633649,0.01975376,101240.0,101230.0,0.55729067]
[1746722633952,0.01234624,101240.0,101230.0,0.55729067]
[1746722634159,0.15558372,101250.0,101240.0,0.22718203]
[1746722634437,0.15471177,101250.0,101240.0,0.23705886]
[1746722634638,0.14483543,101250.0,101240.0,0.23705886]
[1746722634846,0.15471177,101250.0,101240.0,0.73705886]
[1746722634995,0.36824263,101250.0,101240.0,0.73705886]
[1746722635167,0.38736157,101250.0,101240.0,0.73705886]
[1746722635372,0.39608591,101250.0,101240.0,0.72718203]
[1746722635581,0.39808591,101250.0,101240.0,0.72718203]
[1746722635777,0.40796245,101250.0,101240.0,0.72718213]
[1746722636018,0.3980865,101250.0,101240.0,0.72718213]
[1746722636618,0.3980865,101250.0,101240.0,0.72718222]
[1746722637478,0.38821045,101250.0,101240.0,0.72718222]
[1746722638291,0.38821045,101250.0,101240.0,0.73705925]
[1746722638501,0.38821045,101250.0,101240.0,0.72718222]
[1746722639014,0.38821045,101250.0,101240.0,0.73705925]
[1746722639326,0.38821045,101250.0,101240.0,0.5]
[1746722639327,0.64947107,101250.0,101240.0,0.5]
[1746722639528,0.64947107,101250.0,101240.0,0.50987751]
[1746722639807,0.63959453,101250.0,101240.0,0.5]
[1746722640011,0.63959453,101250.0,101240.0,0.70742779]
[1746722640414,0.35858113,101250.0,101240.0,0.70742779]
[1746722640620,0.34198113,101250.0,101240.0,0.71730511]
[1746722640956,0.34198113,101250.0,101240.0,0.72718233]
[1746722641206,0.34198113,101250.0,101240.0,0.70742779]
[1746722641382,0.35758113,101250.0,101240.0,0.70742779]
[1746722641583,0.35758113,101250.0,101240.0,0.69755037]
[1746722641785,0.35758113,101250.0,101240.0,0.70742788]
[1746722642767,0.35758113,101250.0,101240.0,0.7173052]
[1746722643430,0.35758113,101250.0,101240.0,0.70742788]
[1746722643792,0.35758113,101250.0,101240.0,0.7173053]
[1746722644691,0.35758113,101250.0,101240.0,0.72718262]
[1746722644893,0.35758113,101250.0,101240.0,0.58091289]
[1746722645131,0.35758113,101250.0,101240.0,0.59079001]
[1746722645856,0.35758113,101250.0,101240.0,0.58091289]
[1746722646812,0.35758113,101250.0,101240.0,0.57103557]
[1746722647733,0.14820266,101250.0,101240.0,0.61616675]
[1746722647905,0.35561006,101250.0,101240.0,0.61616675]
[1746722648215,0.35561006,101250.0,101240.0,0.60628992]
[1746722648366,0.35561006,101250.0,101240.0,0.59641289]
[1746722648568,0.35561006,101250.0,101240.0,0.58091289]
[1746722648776,0.34636756,101250.0,101240.0,0.58091289]
[1746722649176,0.33649151,101250.0,101240.0,0.57103557]
[1746722649392,0.35149151,101250.0,101240.0,0.57103557]
[1746722649592,0.41518528,101250.0,101240.0,0.56115815]
[1746722649796,0.41518528,101250.0,101240.0,0.57721169]
[1746722649797,0.36779151,101250.0,101240.0,0.57721169]
[1746722650258,0.35791517,101250.0,101240.0,0.57721169]
[1746722650785,0.35791517,101250.0,101240.0,0.35990639]
[1746722650917,0.34803863,101250.0,101240.0,0.35990639]
[1746722651957,0.91930804,101250.0,101240.0,0.35990639]
[1746722652288,1.01997496,101250.0,101240.0,0.35990639]
[1746722652626,1.01997496,101250.0,101240.0,0.35373027]
[1746722652826,0.73896156,101250.0,101240.0,0.35373027]
[1746722653027,0.04417446,101230.0,101220.0,0.22722594]
[1746722653275,0.15471977,101230.0,101220.0,0.24372604]
[1746722653476,0.14484138,101230.0,101220.0,0.25360482]
[1746722653673,0.15471967,101230.0,101220.0,0.25360482]
[1746722653874,0.14484138,101230.0,101220.0,0.75360482]
[1746722654118,0.10066692,101230.0,101220.0,0.77703113]
[1746722654442,0.10166692,101230.0,101220.0,0.77703113]
[1746722654648,0.001,101230.0,101220.0,1.05804453]
[1746722654824,0.001,101230.0,101220.0,1.67905793]
[1746722655029,0.03655954,101250.0,101240.0,0.24348174]
[1746722655239,0.13731936,101250.0,101240.0,0.24348174]
[1746722655440,0.36157563,101250.0,101240.0,0.23360491]
[1746722655661,0.11987499,101250.0,101240.0,0.25335877]
[1746722655855,0.13962719,101250.0,101240.0,0.26965877]
[1746722656243,0.14950353,101250.0,101240.0,0.26965877]
[1746722656439,0.36157592,101250.0,101240.0,0.25978194]
[1746722656639,0.02963205,101240.0,101230.0,0.0326]
[1746722656845,0.03210067,101240.0,101230.0,0.25980419]
[1746722657049,0.02222335,101240.0,101230.0,0.25980419]
[1746722657624,0.02222335,101240.0,101230.0,0.75980419]
[1746722657823,0.02222335,101240.0,101230.0,0.76080419]
[1746722658025,0.03210057,101240.0,101230.0,0.76080419]
[1746722658226,0.00987703,101240.0,101230.0,0.76080419]
[1746722658428,0.00987683,101240.0,101230.0,0.76080419]
[1746722658629,0.33258432,101250.0,101240.0,0.22718203]
[1746722658901,0.33258432,101250.0,101240.0,0.24328203]
[1746722659407,0.33258432,101250.0,101240.0,0.24328222]
[1746722659581,0.33258432,101250.0,101240.0,0.74328222]
[1746722659777,0.33458432,101250.0,101240.0,0.74328222]
[1746722659980,0.3438309,101250.0,101240.0,0.7334051]
[1746722661339,0.3438309,101250.0,101240.0,0.7173051]
[1746722661959,0.33395465,101250.0,101240.0,0.7173051]
[1746722662161,0.35035465,101250.0,101240.0,0.7173051]
[1746722662618,0.33395465,101250.0,101240.0,0.7173051]
[1746722662979,0.3438309,101250.0,101240.0,0.74218222]
[1746722664045,0.3438309,101250.0,101240.0,0.74348222]
[1746722664751,0.3438309,101250.0,101240.0,0.75335925]
[1746722664909,0.3438309,101250.0,101240.0,0.76323608]
[1746722665109,0.3438309,101250.0,101240.0,0.75908222]
[1746722665432,0.3438309,101250.0,101240.0,0.74348222]
[1746722666165,0.3438309,101250.0,101240.0,0.7336052]
[1746722668098,0.3438309,101250.0,101240.0,0.74348232]
[1746722669021,0.3438309,101250.0,101240.0,0.75335935]
[1746722669174,0.3438309,101250.0,101240.0,0.74348232]
[1746722669378,0.3438309,101250.0,101240.0,0.72718232]
[1746722669593,0.3604309,101250.0,101240.0,0.72718232]
[1746722669923,0.3604309,101250.0,101240.0,0.7173052]
[1746722670114,0.3604309,101250.0,101240.0,0.73705954]
[1746722670277,0.36737067,101250.0,101240.0,0.73705954]
[1746722671013,0.35077067,101250.0,101240.0,0.74693657]
[1746722671161,0.36627067,101250.0,101240.0,0.73705954]
[1746722671985,0.35077067,101250.0,101240.0,0.74693657]
[1746722672196,0.35077067,101250.0,101240.0,0.76233657]
[1746722673649,0.35077067,101250.0,101240.0,0.74258242]
[1746722673810,0.34089442,101250.0,101240.0,0.74258242]
[1746722674894,0.34089442,101250.0,101240.0,0.75245954]
[1746722675243,0.34089442,101250.0,101240.0,0.76233647]
[1746722675609,0.34089442,101250.0,101240.0,0.75245954]
[1746722675844,0.35077067,101250.0,101240.0,0.76233657]
[1746722676042,0.35077067,101250.0,101240.0,0.76233599]
[1746722677569,0.13348702,101250.0,101240.0,0.77753599]
[1746722677745,0.15617492,101250.0,101240.0,0.7775355]
[1746722677887,0.16605126,101250.0,101240.0,0.7775355]
[1746722678690,0.37345944,101250.0,101240.0,0.7775355]
[1746722678889,0.17592858,101250.0,101240.0,0.7775355]
[1746722679967,0.37345944,101250.0,101240.0,0.76765867]
[1746722680127,0.36358358,101250.0,101240.0,0.75245867]
[1746722680334,0.36358358,101250.0,101240.0,0.74258174]
[1746722680556,0.35370743,101250.0,101240.0,0.7327051]
[1746722680887,0.34905465,101250.0,101240.0,0.69755037]
[1746722681088,0.63006805,101250.0,101240.0,0.70742788]
[1746722681264,0.63700865,101250.0,101240.0,0.7173053]
[1746722681682,0.35599525,101250.0,101240.0,0.7173053]
[1746722682026,0.35599525,101250.0,101240.0,0.5]
[1746722682210,0.37169525,101250.0,101240.0,0.5]
[1746722683461,0.35599525,101250.0,101240.0,0.5]
[1746722684072,0.35599525,101250.0,101240.0,0.69755037]
[1746722684269,0.35599525,101250.0,101240.0,0.70742788]
[1746722684479,0.34611871,101250.0,101240.0,0.70742788]
[1746722686580,0.34611871,101250.0,101240.0,0.5]
[1746722686878,0.34611871,101250.0,101240.0,0.69755037]
[1746722687071,0.34611871,101250.0,101240.0,0.70742788]
[1746722688041,0.36201871,101250.0,101240.0,0.5]
[1746722688243,0.72708646,101250.0,101240.0,0.5]
[1746722688682,0.64303211,101250.0,101240.0,0.5]
[1746722689033,0.23786854,101240.0,101230.0,0.21732649]
[1746722689236,0.33853546,101240.0,101230.0,0.21732649]
[1746722689387,0.34778204,101240.0,101230.0,0.21732649]
[1746722689794,0.35472264,101240.0,101230.0,0.72720478]
[1746722689992,0.36459986,101240.0,101230.0,0.73708298]
[1746722691070,0.33982264,101240.0,101230.0,0.73708298]
[1746722691267,0.33982264,101240.0,101230.0,0.75248298]
[1746722691426,0.34082264,101240.0,101230.0,0.75248298]
[1746722691830,0.34082264,101240.0,101230.0,0.74260478]
[1746722693803,0.33094532,101240.0,101230.0,0.7228481]
[1746722693945,0.33094532,101240.0,101230.0,0.71732649]
[1746722695595,0.34704532,101240.0,101230.0,0.71732649]
[1746722695789,0.35481532,101240.0,101230.0,0.71732649]
[1746722695978,0.63582872,101240.0,101230.0,0.71732649]
[1746722696787,0.61972872,101240.0,101230.0,0.71732649]
[1746722697329,0.33871532,101240.0,101230.0,0.71732649]
[1746722697874,0.33871532,101240.0,101230.0,0.73312649]
[1746722698099,0.33094532,101240.0,101230.0,0.74300459]
[1746722698294,0.33094532,101240.0,101230.0,0.75950459]
[1746722698522,0.1188541,101240.0,101230.0,1.0602738]
[1746722698900,0.1188541,101240.0,101230.0,0.7792604]
[1746722699106,0.01124658,101240.0,101230.0,0.7792604]
[1746722699277,0.01187664,101240.0,101230.0,0.7792604]
[1746722699478,0.02175347,101240.0,101230.0,0.7792604]
[1746722700100,0.02175357,101240.0,101230.0,0.7792604]
[1746722700303,0.0316304,101240.0,101230.0,0.7792604]
[1746722700585,0.05138474,101240.0,101230.0,0.7792604]
[1746722700992,0.24893589,101240.0,101230.0,0.7792604]
[1746722701232,0.05138552,101240.0,101230.0,0.7792604]
[1746722701390,0.23905916,101240.0,101230.0,0.74962649]
[1746722701590,0.23905916,101240.0,101230.0,0.75950459]
[1746722701791,0.24830924,101240.0,101230.0,0.75950459]
[1746722702101,0.24830924,101240.0,101230.0,0.76938249]
[1746722702306,0.25818675,101240.0,101230.0,0.76938249]
[1746722702644,0.25818675,101240.0,101230.0,0.7792603]
[1746722702847,0.25818675,101240.0,101230.0,0.75950459]
[1746722703171,0.34376315,101240.0,101230.0,0.72324818]
[1746722703371,0.34376315,101240.0,101230.0,0.75950438]
[1746722703579,0.34376315,101240.0,101230.0,0.74962638]
[1746722703981,0.34376315,101240.0,101230.0,0.75950428]
[1746722704972,0.34376315,101240.0,101230.0,0.74962638]
[1746722705181,0.34376315,101240.0,101230.0,0.75950448]
[1746722705322,0.34376315,101240.0,101230.0,0.76938248]
[1746722705522,0.34376315,101240.0,101230.0,0.77926038]
[1746722706261,0.34376315,101240.0,101230.0,0.76938248]
[1746722706456,0.34376315,101240.0,101230.0,0.74300448]
[1746722707077,0.34376315,101240.0,101230.0,0.72324838]
[1746722707282,0.33388573,101240.0,101230.0,0.5]
[1746722707499,0.02112672,101240.0,101230.0,1.04091759]
[1746722707671,0.01125008,101240.0,101230.0,1.04091759]
[1746722707834,0.002,101240.0,101230.0,0.75990419]
[1746722708038,0.03163127,101240.0,101230.0,0.75002638]
[1746722708240,0.13229819,101240.0,101230.0,0.75002638]